lending/lending_fUSD_20251106
["ID","MTS","AMOUNT","RATE_DAILY","PERIOD"]
[393318937,1762463638397,-1472800.0,0.00051,120]
[393318938,1762463638427,-519116.24273727,0.00051,120]
[393318939,1762463640873,-1000000.0,0.00048,120]
[393318940,1762463641124,-480883.75726273,0.00051,120]
[393318941,1762463641156,-1000.0,0.00051,120]
[393318942,1762463641187,-798876.0,0.00051,120]
[393318943,1762463641219,-1000000.0,0.00051,120]
[393318944,1762463641249,-1009.28868708,0.00051,120]
[393318945,1762463641280,-607.0,0.00051,120]
[393318946,1762463641309,-3423.0,0.00051,120]
[393318947,1762463641338,-1315.0,0.00051,120]
[393318948,1762463641365,-574.0,0.00051,120]
[393318949,1762463641396,-1596.0,0.00051,120]
[393318950,1762463641424,-1273.0,0.00051,120]
[393318951,1762463641453,-812.0,0.00051,120]
[393318952,1762463641481,-2141.0,0.00051,120]
[393318953,1762463641508,-559.0,0.00051,120]
[393318954,1762463641539,-6658.0,0.00051,120]
[393318955,1762463641567,-219.69921506,0.00051036,30]
[393318956,1762463641596,-860.61553509,0.00051072,30]
[393318957,1762463641635,-150.0,0.00051114,120]
[393318958,1762463641665,-860.61553509,0.00051232,30]
[393318959,1762463641694,-500.0,0.00051233,60]
[393318960,1762463641724,-150.0,0.00051407,120]
[393318961,1762463641754,-700.0,0.00051507,60]
[393318962,1762463641784,-860.6155351,0.00051658,30]
[393318963,1762463641814,-150.0,0.00051755,30]
[393318964,1762463641845,-2200.0,0.00052,30]
[393318965,1762463641874,-175124.0,0.00052,120]
[393318966,1762463641905,-1000.0,0.00052,120]
[393318967,1762463641933,-200.0,0.00052,120]
[393318968,1762463641963,-1000000.0,0.00052,120]
[393318969,1762463641992,-516297.40822985,0.00052,120]
[393318970,1762463646427,-156.4,0.000311,30]
[393318971,1762463646463,-156.4,0.000325,30]
[393318972,1762463646508,-156.4,0.000335,30]
[393318973,1762463646547,-156.4,0.000347,30]
[393318974,1762463646624,-1000000.0,0.000485,120]
[393318975,1762463646658,-1000000.0,0.00049,120]
[393318976,1762463646690,-1000.0,0.00050375,30]
[393318977,1762463646722,-1000.0,0.00050584,30]
[393318978,1762463646751,-1000.0,0.00050864,30]
[393318979,1762463646780,-1000.0,0.00051284,30]
[393318980,1762463646808,-1000.0,0.00051486,30]
[393318981,1762463646838,-1000.0,0.00051625,30]
[393318982,1762463646867,-1000.0,0.0005177,30]
[393318983,1762463646898,-483702.59177015,0.00052,120]
[393318984,1762463646932,-1000000.0,0.00052,120]
[393318985,1762463646964,-1000000.0,0.00052,120]
[393318986,1762463646993,-2000.0,0.0005205,30]
[393318987,1762463647024,-2000.0,0.0005205,30]
[393318988,1762463647052,-238.56012008,0.00052055,120]
[393318989,1762463647081,-153.0,0.00052055,120]
[393318990,1762463647109,-153.0,0.00052055,120]
[393318991,1762463647138,-153.0,0.00052055,120]
[393318992,1762463647166,-153.0,0.00052055,120]
[393318993,1762463647195,-153.0,0.00052055,120]
[393318994,1762463647223,-153.0,0.00052055,120]
[393318995,1762463647251,-153.0,0.00052055,120]
[393318996,1762463647304,1000.0,0.00051172,30]
[393318997,1762463647336,156.4,0.00038,30]
[393318998,1762463647370,1014.39922561,0.00050642,30]
[393318999,1762463647412,156.4,0.00048,30]
[393319000,1762463647469,150.0,0.00051755,30]
[393319001,1762463647580,150.0,0.00051755,30]
[393319002,1762463647783,150.0,0.00051755,30]
[393319003,1762463647994,150.0,0.00051755,30]
[393319004,1762463648184,150.0,0.00051755,30]
[393319005,1762463648372,152.25581388,0.00051755,30]
[393319006,1762463650015,703.93,0.00048,30]
[393319007,1762463651228,1005.0,0.00052,60]
[393319008,1762463651754,1005.0,0.00051,60]
[393319009,1762463652006,1005.0,0.0005,60]
[393319010,1762463652398,1005.0,0.00049,30]
[393319011,1762463652808,1005.0,0.00048,30]
[393319012,1762463653231,1005.0,0.00047,30]
[393319013,1762463653620,1010.19032691,0.00046,30]
[393319014,1762463657262,1987.75301007,0.0005205,30]
[393319015,1762463676893,-712.51,0.00050194,30]
[393319016,1762463676923,-1247.16006191,0.00052055,30]
[393319017,1762463676951,-700.0,0.00052603,60]
[393319018,1762463676979,-2005168.3,0.0005269,120]
[393319019,1762463677010,-500.0,0.0005269,30]
[393319020,1762463677038,-1000.0,0.00053,120]
[393319021,1762463677068,-189188.0,0.00053,120]
[393319022,1762463677096,-229.58206521,0.00053273,120]
[393319023,1762463677124,-1000.0,0.00053499,120]
[393319024,1762463677152,-2553.66475337,0.00053604,120]
[393319025,1762463677180,-2822.96073717,0.00053608,120]
[393319026,1762463677208,-26913.22409689,0.00053664,120]
[393319027,1762463677236,-700.0,0.00053699,60]
[393319028,1762463677264,-560.84971618,0.00053715,120]
[393319029,1762463677293,-209.99223621,0.00053778,120]
[393319030,1762463677322,-544.0,0.000538,120]
[393319031,1762463677350,-1004.0,0.0005388,120]
[393319032,1762463677378,-38325.70161728,0.00053881,120]
[393319033,1762463677406,-905.0,0.00053901,120]
[393319034,1762463677435,-1188.0,0.00053901,120]
[393319035,1762463677463,-275832.88389318,0.0005392,120]
[393319036,1762463677492,-8344.77035356,0.00053943,120]
[393319037,1762463677521,-500.0,0.00053972,120]
[393319038,1762463677557,-100000.0,0.0005399,30]
[393319039,1762463677588,-250.0,0.00054,30]
[393319040,1762463677616,-150.37386877,0.00054,120]
[393319041,1762463677650,-1000.0,0.00054,120]
[393319042,1762463677679,-200.0,0.00054,120]
[393319043,1762463677971,-105891.2071647,0.00054,30]
[393319044,1762463678002,-150.0,0.00054,120]
[393319045,1762463678030,-500.0,0.00054,30]
[393319046,1762463678059,-500.0,0.00054,30]
[393319047,1762463678088,-500.0,0.00054,120]
[393319048,1762463678117,-500.0,0.00054,30]
[393319049,1762463678146,-500.0,0.00054,30]
[393319050,1762463678175,-1000.0,0.00054,120]
[393319051,1762463678203,-1261.61085885,0.00054,120]
[393319052,1762463678234,-607.0,0.00054,120]
[393319053,1762463678264,-727.751,0.00054,120]
[393319054,1762463678296,-1315.0,0.00054,120]
[393319055,1762463678325,-1596.0,0.00054,120]
[393319056,1762463678354,-1273.0,0.00054,120]
[393319057,1762463678383,-812.0,0.00054,120]
[393319058,1762463678415,-2141.0,0.00054,120]
[393319059,1762463678447,-559.0,0.00054,120]
[393319060,1762463678478,-6658.0,0.00054,120]
[393319061,1762463678509,-152.0,0.000541,120]
[393319062,1762463678539,-500.0,0.00054246,120]
[393319063,1762463678569,-2000.0,0.0005444,69]
[393319064,1762463678596,-344.59640086,0.0005452,120]
[393319065,1762463707379,-3700.0,0.0003878,16]
[393319066,1762463707411,-232.89905951,0.0003878,14]
[393319067,1762463707443,-194.8769128,0.0003878,10]
[393319068,1762463707472,-231.58820485,0.0003878,15]
[393319069,1762463707503,-5035.65959914,0.0003878,10]
[393319070,1762463707532,-280.91682755,0.0003878,10]
[393319071,1762463707562,-275.0,0.0003878,14]
[393319072,1762463707593,-150.0,0.0003878,14]
[393319073,1762463707623,-5435.63850553,0.0003878,10]
[393319074,1762463707659,-300.0,0.0003878,15]
[393319075,1762463707694,-2326.93839252,0.0003878,10]
[393319076,1762463707725,-2353.77988271,0.0003878,10]
[393319077,1762463707928,-500.0,0.0003878,14]
[393319078,1762463707962,-500.0,0.0003878,14]
[393319079,1762463707995,-500.0,0.0003878,14]
[393319080,1762463708029,-500.0,0.0003878,14]
[393319081,1762463708063,-500.0,0.0003878,14]
[393319082,1762463708096,-500.0,0.0003878,14]
[393319083,1762463708129,-500.0,0.0003878,14]
[393319084,1762463708162,-500.0,0.0003878,14]
[393319085,1762463708197,-500.0,0.0003878,14]
[393319086,1762463708231,-500.0,0.0003878,14]
[393319087,1762463708265,-500.0,0.0003878,14]
[393319088,1762463708304,-500.0,0.0003878,14]
[393319089,1762463708338,-500.0,0.0003878,14]
[393319090,1762463708372,-500.0,0.0003878,14]
[393319091,1762463708408,-500.0,0.0003878,14]
[393319092,1762463708443,-500.0,0.0003878,14]
[393319093,1762463708477,-500.0,0.0003878,14]
[393319094,1762463708511,-500.0,0.0003878,14]
[393319095,1762463708544,-175.79332829,0.0003878,14]
[393319096,1762463708576,-23221.09980752,0.0003878,15]
[393319097,1762463708612,-500.0,0.0003878,14]
[393319098,1762463708648,-502.61406142,0.0003878,14]
[393319099,1762463708682,-210.17238812,0.0003878,14]
[393319100,1762463708716,-7052.24268181,0.0003878,20]
[393319101,1762463708747,-1010.60572729,0.0003878,20]
[393319103,1762463722137,778.99,0.00013699,2]
[393319108,1762463898541,6424.91737712,0.0003878,45]
[393319109,1762464047255,-176.8,0.00016622,2]
[393319110,1762464047280,-217.58970178,0.0001681,2]
[393319111,1762464047303,-207.0,0.0001681,2]
[393319112,1762464047326,-227.18753325,0.00016811,2]
[393319113,1762464047350,-171.42276497,0.00016811,2]
[393319114,1762464064542,150.0,0.00038952,120]
[393319115,1762464274082,500.0,0.00038952,120]
[393319116,1762464274455,500.0,0.00038952,120]
[393319117,1762464274826,500.0,0.00038952,120]
[393319118,1762464275195,500.0,0.00038952,120]
[393319122,1762464285603,500.0,0.00038952,120]
[393319123,1762464286018,500.0,0.00038952,120]
[393319124,1762464286688,500.0,0.00038952,120]
[393319125,1762464287076,500.0,0.00038952,120]
[393319126,1762464287444,500.0,0.00038952,120]
[393319127,1762464287821,500.0,0.00038952,120]
[393319128,1762464288193,500.0,0.00038952,120]
[393319129,1762464288569,500.0,0.00038952,120]
[393319130,1762464288962,500.0,0.00038952,120]
[393319131,1762464289337,500.0,0.00038952,120]
[393319132,1762464289747,500.0,0.00038952,120]
[393319133,1762464290160,500.0,0.00038952,120]
[393319134,1762464290553,500.0,0.00038952,120]
[393319135,1762464290958,310.00355962,0.00038952,120]
[393319136,1762464295224,240.34,8.512e-05,2]
[393319137,1762464295435,240.34,8.943e-05,2]
[393319138,1762464295648,240.34,9.373e-05,2]
[393319139,1762464295873,240.34,9.804e-05,2]
[393319140,1762464296088,240.34,0.00010234,2]
[393319141,1762464296319,240.34,0.00010665,2]
[393319142,1762464296567,240.34,0.00011095,2]
[393319143,1762464296844,240.34,0.00011526,2]
[393319144,1762464297156,240.34,0.00011956,2]
[393319145,1762464297276,240.34,0.00012387,2]
[393319146,1762464297484,240.34,0.00012817,2]
[393319147,1762464297696,240.34,0.00013248,2]
[393319148,1762464297923,240.34,0.00013678,2]
[393319149,1762464298153,240.34,0.00014108,2]
[393319150,1762464298398,240.34,0.00014539,2]
[393319151,1762464298600,240.34,0.00014969,2]
[393319152,1762464303204,1061.86100552,0.00038952,30]
[393319153,1762464316040,156.02,0.00038952,30]
[393319157,1762464368019,-240.34,0.000154,2]
[393319158,1762464386568,-240.34,0.0001583,2]
[393319159,1762464410512,500.0,0.00038952,120]
[393319160,1762464410678,500.0,0.00038952,120]
[393319161,1762464411056,500.0,0.00038952,120]
[393319162,1762464411525,500.0,0.00038952,120]
[393319163,1762464411947,500.0,0.00038952,120]
[393319164,1762464412334,500.0,0.00038952,120]
[393319165,1762464412726,500.0,0.00038952,120]
[393319166,1762464413105,500.0,0.00038952,120]
[393319167,1762464413493,500.0,0.00038952,120]
[393319168,1762464413877,500.0,0.00038952,120]
[393319169,1762464414299,500.0,0.00038952,120]
[393319170,1762464414680,500.0,0.00038952,120]
[393319171,1762464415207,500.0,0.00038952,120]
[393319172,1762464415753,500.0,0.00038952,120]
[393319173,1762464416186,500.0,0.00038952,120]
[393319174,1762464416559,500.0,0.00038952,120]
[393319175,1762464416942,500.0,0.00038952,120]
[393319176,1762464417321,500.0,0.00038952,120]
[393319177,1762464417728,500.0,0.00038952,120]
[393319178,1762464418102,500.0,0.00038952,120]
[393319179,1762464418485,627.25350652,0.00038952,120]
[393319180,1762464430868,500.0,0.00038952,120]
[393319181,1762464431271,500.0,0.00038952,120]
[393319182,1762464431653,447.21,0.00038952,120]
[393319183,1762464457187,27836.26841068,0.00028,120]
[393319184,1762464468763,1000.0,0.00015,2]
[393319185,1762464468786,759.66,0.00015,2]
[393319186,1762464468808,1000.0,0.00015,2]
[393319187,1762464468830,759.66,0.00015,2]
[393319188,1762464468852,1000.0,0.00015,2]
[393319189,1762464468887,48843.75790522,0.00015,2]
[393319190,1762464468919,123701.62023685,0.00015,2]
[393319193,1762464517609,265.511975,0.0003,120]
[393319194,1762464549560,500.0,0.00038951,120]
[393319195,1762464549946,504.49968604,0.00038951,120]
[393319196,1762464609606,899.82,0.00038951,120]
[393319197,1762464610023,899.82,0.00038951,120]
[393319198,1762464610423,899.82,0.00038951,120]
[393319199,1762464610982,899.82,0.00038951,120]
[393319200,1762464611378,899.82,0.00038951,120]
[393319201,1762464611748,899.82,0.00038951,120]
[393319202,1762464612126,899.82,0.00038951,120]
[393319203,1762464612494,899.82,0.00038951,120]
[393319204,1762464612867,899.82,0.00038951,120]
[393319205,1762464613245,899.82,0.00038951,120]
[393319206,1762464613616,899.82,0.00038951,120]
[393319207,1762464613995,899.82,0.00038951,120]
[393319208,1762464614476,899.82,0.00038951,120]
[393319209,1762464615051,899.82,0.00038951,120]
[393319210,1762464615412,899.82,0.00038951,120]
[393319211,1762464615805,899.82,0.00038951,120]
[393319212,1762464616181,899.82,0.00038951,120]
[393319213,1762464616719,899.82,0.00038951,120]
[393319214,1762464617184,899.82,0.00038951,120]
[393319215,1762464617545,899.82,0.00038951,120]
[393319216,1762464617917,899.82,0.00038951,120]
[393319217,1762464618651,899.82,0.00038951,120]
[393319218,1762464619026,899.82,0.00038951,120]
[393319219,1762464619421,899.97390178,0.00038951,120]
[393319222,1762464631805,-240.34,0.00016261,2]
[393319224,1762464631814,-300.0,0.00016412,2]
[393319226,1762464631824,-44.66468555,0.00016412,2]
[393319228,1762464631835,-255.33531445,0.00016412,2]
[393319229,1762464631844,-1152.99349362,0.00016412,2]
[393319230,1762464631856,-47.00650638,0.00016412,2]
[393319231,1762464631869,-1606.87473442,0.00016413,2]
[393319232,1762464631985,-559.2491887,0.00016413,2]
[393319233,1762464631996,-335.07018569,0.00016413,2]
[393319234,1762464632008,-500.0,0.00016413,2]
[393319235,1762464632097,-614.37390575,0.00016413,2]
[393319236,1762464632108,-10185.43198544,0.00016413,2]
[393319237,1762464632118,-240.34,0.00016691,2]
[393319238,1762464632127,-1852.42,0.00016702,2]
[393319239,1762464632136,-3120.64957422,0.00016811,2]
[393319240,1762464632145,-605.9795633,0.00016811,2]
[393319241,1762464632155,-201.54,0.00016907,2]
[393319243,1762464632165,-500.0,0.00016909,2]
[393319245,1762464632174,-500.0,0.00016909,2]
[393319247,1762464632183,-500.0,0.00016909,2]
[393319248,1762464632193,-500.0,0.00016909,2]
[393319249,1762464632202,-246.04159268,0.00016909,2]
[393319250,1762464632211,-500.0,0.00016909,2]
[393319252,1762464632221,-500.0,0.00016909,2]
[393319254,1762464632230,-257.74894406,0.00016909,2]
[393319256,1762464632239,-500.0,0.00016909,2]
[393319258,1762464632248,-500.0,0.00016909,2]
[393319259,1762464632257,-500.0,0.0001691,2]
[393319260,1762464632266,-500.0,0.0001691,2]
[393319261,1762464632276,-500.0,0.0001691,2]
[393319262,1762464632286,-544.69,0.0001691,2]
[393319264,1762464632295,-500.0,0.0001691,2]
[393319266,1762464632304,-2154.51452873,0.00016911,2]
[393319268,1762464632315,-182332.28567788,0.00016911,2]
[393319285,1762464637845,-305.11573252,0.00016908,2]
[393319286,1762464637855,-195.30543823,0.00016908,2]
[393319287,1762464637864,-235513.19979339,0.00016911,2]
[393319288,1762464637873,-1000.0,0.00016911,2]
[393319289,1762464637881,-3120.64957415,0.00016932,2]
[393319290,1762464637891,-605.97956325,0.00016932,2]
[393319291,1762464637900,-500.0,0.00016973,2]
[393319292,1762464637909,-542.73100948,0.00016973,2]
[393319293,1762464637918,-500.0,0.00016973,2]
[393319294,1762464637927,-250.0,0.00017,2]
[393319295,1762464637938,-500.0,0.0001701,2]
[393319296,1762464637948,-3120.64957415,0.00017053,2]
[393319297,1762464637958,-605.97956325,0.00017053,2]
[393319298,1762464637967,-166.66,0.00017124,2]
[393319299,1762464637976,-3120.64957415,0.00017174,2]
[393319300,1762464637986,-605.97956325,0.00017174,2]
[393319301,1762464637997,-3120.64957415,0.00017295,2]
[393319302,1762464638007,-605.97956325,0.00017295,2]
[393319304,1762464638017,-3120.64957415,0.00017416,2]
[393319306,1762464638026,-605.97956325,0.00017416,2]
[393319308,1762464638036,-1000.0,0.00017521,2]
[393319310,1762464638045,-1079.35361335,0.00017521,2]
[393319312,1762464638055,-3120.64957415,0.00017537,2]
[393319314,1762464638064,-605.97956325,0.00017537,2]
[393319316,1762464638073,-176.8,0.00017546,2]
[393319318,1762464638082,-5464.0,0.00017573,2]
[393319320,1762464638091,-477.87911524,0.00017575,2]
[393319321,1762464638100,-3120.64957415,0.00017658,2]
[393319323,1762464638110,-605.97956325,0.00017658,2]
[393319325,1762464638119,-549.06301974,0.000177,2]
[393319327,1762464638128,-500.0,0.00017753,2]
[393319329,1762464638137,-3120.64957415,0.00017779,2]
[393319331,1762464638147,-605.97956325,0.00017779,2]
[393319333,1762464638156,-2249.0,0.00017847,2]
[393319335,1762464638164,-2249.0,0.00017877,2]
[393319337,1762464638174,-5000.0,0.000179,2]
[393319339,1762464638183,-918.60176383,0.000179,2]
[393319341,1762464638193,-3120.64957415,0.000179,2]
[393319343,1762464638202,-420.0,0.00017937,2]
[393319345,1762464638211,-420.0,0.00017937,2]
[393319347,1762464638220,-4057.66014355,0.00017959,2]
[393319350,1762464638237,-348.43199888,0.00017959,2]
[393319352,1762464638248,-1057.90785757,0.00017959,2]
[393319354,1762464638257,-501.56499723,0.00017973,2]
[393319356,1762464638267,-378.81019832,0.00017973,2]
[393319358,1762464638277,-500.0,0.00017973,2]
[393319360,1762464638287,-373.08240891,0.00017973,2]
[393319362,1762464638296,-500.0,0.00017973,2]
[393319364,1762464638306,-67.79358347,0.00017973,2]
[393319367,1762464638327,-432.20641653,0.00017973,2]
[393319369,1762464638336,-500.0,0.00017973,2]
[393319371,1762464638346,-500.0,0.00017973,2]
[393319373,1762464638356,-500.0,0.00017973,2]
[393319375,1762464638365,-500.0,0.00017973,2]
[393319377,1762464638375,-500.95181899,0.00017973,2]
[393319379,1762464638384,-500.0,0.00017973,2]
[393319381,1762464638393,-500.0,0.00017973,2]
[393319383,1762464638403,-500.0,0.00017973,2]
[393319385,1762464638413,-500.0,0.00017973,2]
[393319387,1762464638422,-500.0,0.00017973,2]
[393319389,1762464638431,-500.0,0.00017973,2]
[393319391,1762464638441,-250.93,0.00017973,2]
[393319393,1762464638450,-155.0,0.00017999,2]
[393319395,1762464638460,-494.3167323,0.00017999,3]
[393319397,1762464638469,-3598.30758931,0.00017999,2]
[393319399,1762464638478,-15400.16589434,0.00017999,2]
[393319401,1762464638487,-2613.0,0.00018,2]
[393319403,1762464638496,-117219.71994667,0.00018,2]
[393319418,1762464639960,-605.97956325,0.000179,2]
[393319419,1762464639969,-38445.79468528,0.00018,2]
[393319420,1762464639981,-3927.8227796,0.00018,2]
[393319421,1762464640017,-610.43589326,0.00018,2]
[393319422,1762464640186,-2342.80351947,0.00018,2]
[393319423,1762464640246,-12191.60027874,0.00018,2]
[393319435,1762464642920,-6231843.94095626,0.00018,2]
[393319440,1762464646337,-2915.29814864,0.00018,2]
[393319741,1762464661011,450.0,0.00038951,120]
[393319742,1762464666154,152.346315,0.00038951,120]
[393319743,1762464666242,151.0,0.00038951,120]
[393319744,1762464666834,151.0,0.00038951,120]
[393319745,1762464666876,157.75711142,0.00038951,120]
[393319746,1762464667457,151.0,0.00038951,120]
[393319747,1762464668081,151.0,0.00038951,120]
[393319748,1762464668642,514.84070869,0.00038951,120]
[393319749,1762464668703,151.0,0.00038951,120]
[393319750,1762464668754,250.0,0.00038951,120]
[393319751,1762464669300,151.0,0.00038951,120]
[393319752,1762464669362,500.0,0.00038951,120]
[393319753,1762464669401,250.0,0.00038951,120]
[393319754,1762464669909,151.0,0.00038951,120]
[393319755,1762464670012,250.0,0.00038951,120]
[393319756,1762464670473,500.0,0.00038951,120]
[393319757,1762464670514,151.0,0.00038951,120]
[393319758,1762464670618,250.0,0.00038951,120]
[393319759,1762464671092,500.0,0.00038951,120]
[393319760,1762464671255,250.0,0.00038951,120]
[393319761,1762464671475,300.0,0.00038951,30]
[393319762,1762464671701,500.0,0.00038951,120]
[393319763,1762464671866,250.0,0.00038951,120]
[393319764,1762464672342,500.0,0.00038951,120]
[393319765,1762464672956,500.0,0.00038951,120]
[393319766,1762464673594,500.0,0.00038951,120]
[393319767,1762464674128,176.63108459,0.00038951,120]
[393319768,1762464674241,500.0,0.00038951,120]
[393319769,1762464674886,500.0,0.00038951,120]
[393319770,1762464675660,500.0,0.00038951,120]
[393319771,1762464676269,500.0,0.00038951,120]
[393319772,1762464679359,250.0,0.00038951,120]
[393319773,1762464679968,250.0,0.00038951,120]
[393319774,1762464680599,250.0,0.00038951,120]
[393319775,1762464681215,250.0,0.00038951,120]
[393319776,1762464681829,250.0,0.00038951,120]
[393319777,1762464682429,250.0,0.00038951,120]
[393319778,1762464683048,250.0,0.00038951,120]
[393319779,1762464683737,250.0,0.00038951,120]
[393319780,1762464684381,250.0,0.00038951,120]
[393319781,1762464685041,250.0,0.00038951,120]
[393319782,1762464685079,200.0,0.00038951,30]
[393319783,1762464685670,250.0,0.00038951,120]
[393319784,1762464685742,200.0,0.00038951,30]
[393319785,1762464686349,250.0,0.00038951,120]
[393319786,1762464686983,250.0,0.00038951,120]
[393319787,1762464687595,250.0,0.00038951,120]
[393319788,1762464688218,250.0,0.00038951,120]
[393319789,1762464688849,250.0,0.00038951,120]
[393319790,1762464689481,250.0,0.00038951,120]
[393319791,1762464690135,250.0,0.00038951,120]
[393319792,1762464690756,250.0,0.00038951,120]
[393319793,1762464691373,250.0,0.00038951,120]
[393319794,1762464696837,151.0,0.00038951,120]
[393319795,1762464697437,151.0,0.00038951,120]
[393319796,1762464698072,151.0,0.00038951,120]
[393319797,1762464698710,151.0,0.00038951,120]
[393319798,1762464699345,151.0,0.00038951,120]
[393319799,1762464718860,500.0,0.00038951,120]
[393319800,1762464719238,500.0,0.00038951,120]
[393319801,1762464719610,500.0,0.00038951,120]
[393319802,1762464719974,500.0,0.00038951,120]
[393319803,1762464720345,500.0,0.00038951,120]
[393319804,1762464720706,500.0,0.00038951,120]
[393319805,1762464721562,500.0,0.00038951,120]
[393319806,1762464721954,500.0,0.00038951,120]
[393319807,1762464722353,500.0,0.00038951,120]
[393319808,1762464722727,500.0,0.00038951,120]
[393319809,1762464723154,500.0,0.00038951,120]
[393319810,1762464723682,500.0,0.00038951,120]
[393319811,1762464724080,500.0,0.00038951,120]
[393319812,1762464724464,500.0,0.00038951,120]
[393319813,1762464724871,500.0,0.00038951,120]
[393319814,1762464725257,533.77013606,0.00038951,120]
[393319815,1762464744369,500.0,0.00038951,120]
[393319816,1762464787181,500.0,0.00038951,120]
[393319817,1762464787563,500.0,0.00038951,120]
[393319818,1762464787927,500.0,0.00038951,120]
[393319819,1762464788317,500.0,0.00038951,120]
[393319820,1762464788684,500.0,0.00038951,120]
[393319821,1762464789072,500.0,0.00038951,120]
[393319822,1762464789455,500.0,0.00038951,120]
[393319823,1762464789826,500.0,0.00038951,120]
[393319824,1762464790220,500.0,0.00038951,120]
[393319825,1762464790635,500.0,0.00038951,120]
[393319826,1762464791024,500.0,0.00038951,120]
[393319827,1762464791539,500.0,0.00038951,120]
[393319828,1762464791919,500.0,0.00038951,120]
[393319829,1762464792291,500.0,0.00038951,120]
[393319830,1762464792717,500.0,0.00038951,120]
[393319831,1762464793118,500.0,0.00038951,120]
[393319832,1762464793491,500.0,0.00038951,120]
[393319833,1762464793860,500.0,0.00038951,120]
[393319834,1762464794251,500.0,0.00038951,120]
[393319835,1762464794632,500.0,0.00038951,120]
[393319836,1762464795022,282.9350151,0.00038951,120]
[393319837,1762464808747,200.0,0.00038951,30]
[393319838,1762464838579,500.0,0.0003895,120]
[393319839,1762464838995,500.0,0.0003895,120]
[393319840,1762464839377,500.0,0.0003895,120]
[393319841,1762464839799,500.0,0.0003895,120]
[393319842,1762464840180,500.0,0.0003895,120]
[393319843,1762464840561,500.0,0.0003895,120]
[393319844,1762464840934,500.0,0.0003895,120]
[393319845,1762464841309,500.0,0.0003895,120]
[393319846,1762464841690,500.0,0.0003895,120]
[393319847,1762464842342,500.0,0.0003895,120]
[393319848,1762464842468,500.0,0.0003895,120]
[393319849,1762464843066,500.0,0.0003895,120]
[393319850,1762464843448,500.0,0.0003895,120]
[393319851,1762464843812,500.0,0.0003895,120]
[393319852,1762464844190,500.0,0.0003895,120]
[393319853,1762464844590,500.0,0.0003895,120]
[393319854,1762464844988,500.0,0.0003895,120]
[393319855,1762464845374,500.0,0.0003895,120]
[393319856,1762464845758,500.0,0.0003895,120]
[393319858,1762464846128,500.0,0.0003895,120]
[393319859,1762465022037,-432.54,0.00016702,2]
[393319860,1762465029419,200.0,0.0003895,120]
[393319861,1762465029837,-1795.16230547,0.00016711,2]